Cogmind - Beta 13 @@@ ROGUE MODE // 2024.04.29 @ 21:59:44 Player: Haldron Result: Destroyed by D-53 Grenadier with Mini Grenade Launcher Performance ------------- Evolutions (0) 0 Regions Visited (4) 800 Robots Destroyed (29) 145 Value Destroyed (472) 472 Prototype IDs (23) 460 Alien Tech Used (0) 0 Bonus (288) 288 TOTAL SCORE: 2165 Bonus ------- Aligned with FarCom 300 Friendly Fire -12 Cogmind --------- Core Integrity 0/250 Matter 300/300 Energy 100/100 System Corruption 1% Temperature Cool (0) Movement Rolling (115) Ox1 Location -9/Mines Parts ------- > --- POWER (1) -------- (None) > --- PROPULSION (2) --- Compact Wheel Compact Wheel > --- UTILITY (2) ------ High-capacity Storage Unit Structural Scanner > --- WEAPON (2) ------- Assault Rifle > --- INVENTORY (20) --- Light Angular Momentum Engine Light Treads Light Treads Light Treads Compact Wheel Improved Heat Sink High-capacity Matter Pod (200) Sensor Array Signal Interpreter Seismic Detector 0b10 Alert Chip Targeting Computer Light Armor Plating Beam Rifle Assault Rifle Mining Claw Heavy Explosive Trap Heavy Explosive Trap Heavy Explosive Trap Peak State ------------ > --- POWER ------------ Light Nuclear Core > --- PROPULSION ------- Light Treads Compact Wheel > --- UTILITY ---------- High-capacity Storage Unit Seismic Detector > --- WEAPON ----------- Particle Gun Light Assault Rifle > --- INVENTORY -------- Ion Engine Light Treads Light Treads Light Treads Aluminum Leg Compact Wheel Compact Wheel High-capacity Matter Pod Structural Scanner Sensor Array Signal Interpreter Signal Interpreter Seismic Detector Seismic Detector Seismic Detector Light Armor Plating Medium Laser Medium Laser Small Laser Mining Claw [Rating: 12] Favorites ----------- Power Ion Engine Engine Ion Engine Power Core Light Nuclear Core Propulsion Light Treads Treads Light Treads Wheel Compact Wheel Utility Seismic Detector Device Seismic Detector Storage High-capacity Storage Unit Weapon Particle Gun Energy Gun Particle Gun Ballistic Gun Heavy Assault Rifle Slashing Weapon Mining Claw Build | -11 -10 -10 -10 -9 ------- Run | Yrd Mat Min Exi Min Slots Evolved . | . . . . . Power . | . . . . . Propulsion . | . . . . . Utility . | . . . . . Weapon . | . . . . . Parts Attached 29 | 8 13 5 . 3 Power 4 | 1 2 1 . . Engine 3 | 1 1 1 . . Core 1 | . 1 . . . Reactor . | . . . . . Propulsion 8 | 3 3 1 . 1 Treads 3 | 1 1 1 . . Leg . | . . . . . Wheel 5 | 2 2 . . 1 Hover . | . . . . . Flight . | . . . . . Utility 8 | 2 3 2 . 1 Device 4 | 1 . 2 . 1 Storage 4 | 1 3 . . . Processor . | . . . . . Hackware . | . . . . . Protection . | . . . . . Artifact . | . . . . . Weapon 9 | 2 5 1 . 1 Energy Gun 3 | 1 2 . . . Energy Cannon . | . . . . . Ballistic Gun 5 | 1 2 1 . 1 Ballistic Cannon . | . . . . . Launcher . | . . . . . Special Weapon . | . . . . . Impact Weapon . | . . . . . Slashing Weapon 1 | . 1 . . . Piercing Weapon . | . . . . . Special Melee Weapon . | . . . . . Unidentified Prototypes . | . . . . . Parts Lost 8 | . 4 1 . 3 Power 3 | . 1 1 . 1 Propulsion 1 | . 1 . . . Utility . | . . . . . Weapon 4 | . 2 . . 2 Highest Loss Streak 3 | . 3 1 . 3 To Critical Strikes . | . . . . . Average Slot Usage (%) 99 | . 99 99 100 99 Engine 9 | . 7 7 14 13 Core 4 | . 6 6 . . Treads 13 | . 14 14 14 13 Wheel 14 | . 13 14 14 14 Device 14 | . 14 14 14 14 Storage 14 | . 14 14 14 14 Energy Gun 13 | . 13 14 14 12 Ballistic Gun 12 | . 11 14 14 15 Slashing Weapon 1 | . 2 . . . Naked Turns . | . . . . . Heaviest Build 52 | 15 50 52 52 52 Greatest Support 32 | 16 16 16 16 32 Greatest Overweight (x) 3 | 1 3 3 3 3 Average Overweight (x) 2 | . 1 2 3 2 Largest Inventory Capacity 20 | 8 20 20 20 20 Average Capacity 15 | 7 13 20 20 20 Most Carried 20 | 8 20 20 20 20 Average Carried 14 | 5 10 19 20 19 Final Capacity 20 | 8 20 20 20 20 Final Carried 20 | 8 20 20 20 19 Class Distribution -------------------- 74% | Mutant 25% | Scavenger-Mutant Dominant Class ---------------- Mutant | -10/Materials Mutant | -10/Mines Mutant | -10/Exiles Mutant | -9/Mines Resources | -11 -10 -10 -10 -9 ----------- Run | Yrd Mat Min Exi Min Matter Collected 907 | 319 271 287 . 30 Remotely . | . . . . . Salvage Created 814 | 138 510 166 . . Parts 72 | 16 35 21 . . Haulers Intercepted 1 | . 1 . . . Recyclers Shooed 8 | . 7 1 . . Parts Field Recycled . | . . . . . Retrieved Matter . | . . . . . Parts Self-Destructed . | . . . . . Prevented . | . . . . . Kills | -11 -10 -10 -10 -9 ------- Run | Yrd Mat Min Exi Min Combat Hostiles Destroyed 19 | . 12 7 . . Guns 18 | . 12 6 . . Classes Destroyed 8 | 2 5 1 . . Worker 2 | . 1 1 . . Tunneler 4 | 4 . . . . Hauler 1 | . 1 . . . Recycler 2 | 1 1 . . . Watcher 1 | . 1 . . . Swarmer 12 | . 6 6 . . Grunt 6 | . 6 . . . Sentry 1 | . . 1 . . Best Kill Streak 9 | 4 9 3 . . Combat Bots Only 6 | . 6 3 . . Max Kills in Single Turn 1 | 1 1 1 . . Gunslinging . | . . . . . Exploded . | . . . . . Melee . | . . . . . Uniques/NPCs Destroyed . | . . . . . Combat | -11 -10 -10 -10 -9 -------- Run | Yrd Mat Min Exi Min Hostile Shots Fired 119 | . 77 27 . 15 Missed 35 | . 23 3 . 9 Damage Taken 1217 | . 658 235 . 324 Core 266 | . 95 49 . 122 Absorbed by Shields . | . . . . . Core Remaining (%) 100 | 100 . . . . Volleys Fired 88 | 13 61 14 . . Largest 2 | 2 2 2 . . Hottest 88 | 70 85 88 . . Shots Fired 171 | 22 121 28 . . Gun 171 | 22 121 28 . . Cannon . | . . . . . Launcher . | . . . . . Special . | . . . . . Kinetic 90 | 13 63 14 . . Thermal 81 | 9 58 14 . . Explosive . | . . . . . Electromagnetic . | . . . . . Robot Hit Streak 11 | 6 11 5 . . Robot Miss Streak 6 | 2 6 4 . . Penetration Max . | . . . . . Secondary Targets 4 | . 2 2 . . Max Gunslinging Chain 1 | . 1 1 . . Shots Hit Robots 103 | 15 72 16 . . Core Hits 42 | 6 27 9 . . Critical Kills . | . . . . . Critical Parts Destroyed . | . . . . . Critical Strikes 3 | . 1 2 . . Burn 3 | . 1 2 . . Melee Attacks 4 | . 4 . . . Impact . | . . . . . Slashing 4 | . 4 . . . Piercing . | . . . . . Sneak Attacks . | . . . . . Combat Hostiles . | . . . . . Follow-up Attacks . | . . . . . Damage Inflicted 1302 | 187 860 255 . . Guns 1277 | 187 835 255 . . Cannons . | . . . . . Explosions . | . . . . . Melee 25 | . 25 . . . Ramming . | . . . . . Kinetic 573 | 124 382 67 . . Thermal 704 | 63 453 188 . . Explosive . | . . . . . Electromagnetic . | . . . . . Impact . | . . . . . Slashing 25 | . 25 . . . Piercing . | . . . . . Highest Corruption 1 | . 1 1 1 1 Average Corruption 1 | . 1 1 1 1 Corruption Purged . | . . . . . Corruption Blocked . | . . . . . Effects 22 | . 10 6 2 4 Message Errors 3 | . 2 1 . . Matter Fused 5 | . 3 1 1 . Heat Flow Errors 2 | . . . 1 1 Energy Discharges 5 | . 1 2 . 2 Data Loss (minor) 2 | . . 1 . 1 Data Loss (major) 2 | . 1 1 . . Misfires 3 | . 3 . . . Overload Shots . | . . . . . Overflow Damage . | . . . . . Projectiles . | . . . . . Explosions . | . . . . . Melee . | . . . . . Knockbacks . | . . . . . Impact . | . . . . . Kinetic . | . . . . . Secondary . | . . . . . Self-Inflicted Damage 99 | . 99 . . . Shots 2 | . 2 . . . Rammed . | . . . . . Targets Rammed . | . . . . . Kicked . | . . . . . Crushed . | . . . . . Highest Temperature 279 | 18 279 135 218 122 Average Temperature 67 | 8 76 52 118 62 Received Heat Transfer 252 | . 234 18 . . Siege Activations . | . . . . . Robots Corrupted . | . . . . . Combat Hostiles . | . . . . . Parts Fried . | . . . . . Impact Corruptions . | . . . . . Robots Melted 1 | . . 1 . . Combat Hostiles 1 | . . 1 . . Parts Melted 4 | . . 4 . . Heat Transferred 2183 | 185 1406 592 . . Parts Sabotaged . | . . . . . Parts Stolen . | . . . . . Parts Stripped . | . . . . . Power Chain Reactions . | . . . . . Alert | -11 -10 -10 -10 -9 ------- Run | Yrd Mat Min Exi Min Peak Influence 263 | 25 263 150 . . Initial 16 | . 16 . . . Average 53 | 11 69 59 . . Maximum Alert Level 1 | . 1 . . . Low Security (%) 96 | 100 94 100 . 100 Level 1 3 | . 5 . . . Level 2 . | . . . . . Level 3 . | . . . . . Level 4 . | . . . . . Level 5 . | . . . . . High Security . | . . . . . Max Security . | . . . . . Squads Dispatched 2 | . 2 . . . Investigation 1 | . 1 . . . Extermination . | . . . . . Reinforcement 1 | . 1 . . . Assault . | . . . . . Garrison . | . . . . . Intercept . | . . . . . Searches Triggered . | . . . . . Construction Impeded . | . . . . . Haulers Reinforced . | . . . . . Active Scanning Responses . | . . . . . Cargo Convoy Interrupts . | . . . . . Stealth | -11 -10 -10 -10 -9 --------- Run | Yrd Mat Min Exi Min Distress Signals 1 | . 1 . . . Communications Jammed . | . . . . . Distress Signals . | . . . . . Times Spotted 41 | . 28 8 . 5 Peak Tracking Total 7 | . 7 3 . 7 Tactical Retreats 1 | . 1 . . . Traps | -11 -10 -10 -10 -9 ------- Run | Yrd Mat Min Exi Min Traps Triggered 2 | . 2 . . . Indirectly . | . . . . . Trap Hack Attempts . | . . . . . Triggered . | . . . . . Disarmed . | . . . . . Reprogrammed . | . . . . . Reused . | . . . . . Traps Extracted . | . . . . . Installed . | . . . . . Triggered . | . . . . . Most Traps Carried 3 | . . 3 3 3 Machines | -11 -10 -10 -10 -9 ---------- Run | Yrd Mat Min Exi Min Machines Disabled 3 | . 3 . . . Max in Single Turn 2 | . 2 . . . Machines Repaired . | . . . . . Machines Dismantled . | . . . . . Machines Sabotaged . | . . . . . Overloaded Fab Kills . | . . . . . Hacking | -11 -10 -10 -10 -9 --------- Run | Yrd Mat Min Exi Min Machines Accessed 8 | . 5 . 3 . Terminals 5 | . 5 . . . Fabricators . | . . . . . Repair Stations . | . . . . . Recycling Units . | . . . . . Scanalyzers . | . . . . . Garrison Access . | . . . . . Total Hacks 30 | . 12 . 18 . Successful 23 | . 5 . 18 . Failed 7 | . 7 . . . Catastrophic . | . . . . . Database Lockouts . | . . . . . Manual 10 | . 9 . 1 . Terminals 12 | . 12 . . . Fabricators . | . . . . . Repair Stations . | . . . . . Recycling Units . | . . . . . Scanalyzers . | . . . . . Garrison Access . | . . . . . Terminal Hacks 21 | . 3 . 18 . Record 17 | . . . 17 . Terminal Index 1 | . 1 . . . Unreport Threat 1 | . 1 . . . Locate Traps 1 | . 1 . . . Derelict Proto ID Bank 1 | . . . 1 . Fabricator Hacks . | . . . . . Repair Station Hacks . | . . . . . Recycling Unit Hacks . | . . . . . Scanalyzer . | . . . . . Garrison Access Hacks . | . . . . . Unauthorized Hacks 2 | . 2 . . . Terminals 2 | . 2 . . . Botnet 2 | . 2 . . . Fabricators . | . . . . . Repair Stations . | . . . . . Recycling Units . | . . . . . Scanalyzers . | . . . . . Garrison Access . | . . . . . Data Cores Recovered . | . . . . . Used . | . . . . . Hacking Detections 5 | . 5 . . . Full Trace Events . | . . . . . Feedback Events . | . . . . . Feedback Blocked . | . . . . . Robot Schematics Acquired . | . . . . . Robots Built . | . . . . . Authchips . | . . . . . Time . | . . . . . Total Robot Build Rating . | . . . . . Part Schematics Acquired . | . . . . . Parts Built . | . . . . . Authchips . | . . . . . Time . | . . . . . Total Part Build Rating . | . . . . . Parts Repaired . | . . . . . Time . | . . . . . Parts Recycled . | . . . . . Recycled Matter . | . . . . . Retrieved Matter . | . . . . . Retrieved Components . | . . . . . Parts Scanalyzed . | . . . . . Part Schematics Acquired . | . . . . . Parts Damaged . | . . . . . Bothacking | -11 -10 -10 -10 -9 ------------ Run | Yrd Mat Min Exi Min Used RIF Installer . | . . . . . Robots Hacked . | . . . . . Non-combat . | . . . . . Combat . | . . . . . Robot Hacks Applied . | . . . . . Relay Couplers Released . | . . . . . Fabnet Peak Effective % . | . . . . . Robots Rewired . | . . . . . Allies Hacked . | . . . . . Hacks Repelled . | . . . . . Allies | -11 -10 -10 -10 -9 -------- Run | Yrd Mat Min Exi Min Total Allies . | . . . . . Largest Group . | . . . . . Highest-Rated Group . | . . . . . Highest-Rated Ally . | . . . . . Total Orders . | . . . . . Ally Attacks . | . . . . . Total Damage . | . . . . . Kills . | . . . . . Allies Corrupted . | . . . . . Allies Melted . | . . . . . Intel | -11 -10 -10 -10 -9 ------- Run | Yrd Mat Min Exi Min Robot Analysis Total . | . . . . . Derelict Logs Recovered 2 | . . 2 . . Drone Launches . | . . . . . Drone Recoveries . | . . . . . Exploration | -11 -10 -10 -10 -9 ------------- Run | Yrd Mat Min Exi Min Turns Passed 2526 | 139 1222 484 379 302 Spaces Moved 1455 | 80 624 288 261 202 Core 1 | 1 . . . . Treads . | . . . . . Legs . | . . . . . Wheels 1454 | 79 624 288 261 202 Hover . | . . . . . Flight . | . . . . . Fastest Speed 50 | 50 100 130 145 115 Average Speed 132 | 94 123 144 145 143 Slowest Speed 145 | 100 145 145 145 145 Overloaded Moves . | . . . . . Propulsion Burnouts . | . . . . . Robots Hopped . | . . . . . Cave-ins Triggered . | . . . . . Exploration Rate (%) 51 | 5 72 56 63 59 Regions Visited 4 Branch Regions 3 Pre-discovered Areas . | . . . . . Known Exits Taken . | . . . . . Unknown Exits Taken 4 | 1 1 1 1 . Scrap Searched 2 | . . 1 . 1 Spaces Dug 36 | . 36 . . . Terrain Destroyed 36 | . 36 . . . Melee 1 | . 1 . . . Projectile . | . . . . . AOE 35 | . 35 . . . Terrain Rammed . | . . . . . Walls Destroyed . | . . . . . Machines Disabled . | . . . . . Actions | -11 -10 -10 -10 -9 --------- Run | Yrd Mat Min Exi Min Total 1884 | 119 956 333 262 214 Wait 244 | 3 227 7 . 7 Move 1451 | 79 623 287 260 202 Hop . | . . . . . Pick Up 43 | 13 18 10 1 1 Fast Attach 8 | 5 2 1 . . Attach 5 | 2 2 . . 1 Detach . | . . . . . Swap 16 | 1 9 4 . 2 Drop 25 | 3 10 10 1 1 Fire 88 | 13 61 14 . . Melee 4 | . 4 . . . Ram . | . . . . . Kick . | . . . . . Crush . | . . . . . Escape Stasis . | . . . . . Rewire . | . . . . . Trap . | . . . . . Miscellaneous . | . . . . . Route ------- -11/Scrapyard -10/Materials (discovered 3 exits: [*Mat x2] / [*Min]) -10/Mines -10/Exiles (discovered 2 exits: [*Min x2]) -9/Mines (discovered 1 exit: [*Mat]) History --------- Turn | Location | Event 31 | -11/Scrapyard | Discovered new exit (range 15) 140 | -11/Scrapyard | Entered Materials 310 | -10/Materials | Build established: Mutant 675 | -10/Materials | Discovered new exit (range 10) 677 | -10/Materials | Discovered new exit (range 15) 802 | -10/Materials | Lost 3 parts (1n2w) 961 | -10/Materials | Discovered new exit (range 5) 1362 | -10/Materials | Entered Mines 1425 | -10/Mines | Learned Materials garrison access intel 1471 | -10/Mines | Found a hidden stash of uninstalled traps 1536 | -10/Mines | Build established: Scavenger-Mutant 1589 | -10/Mines | Joined a pair of Derelicts in attacking an 0b10 outpost 1691 | -10/Mines | Core integrity fell below 50% 1798 | -10/Mines | Deemed a non-threat by the Exiles lab entrance 1798 | -10/Mines | Discovered new exit (range 5) 1817 | -10/Mines | Learned Materials stockpile data 1846 | -10/Mines | Entered Exiles 1867 | -10/Exiles | Discovered new exit (range 15) 1892 | -10/Exiles | Build established: Mutant 1902 | -10/Exiles | Met 8R-AWN 1923 | -10/Exiles | Met EX-HEX 1965 | -10/Exiles | Met EX-BIN 1987 | -10/Exiles | Aligned with FarCom system 1989 | -10/Exiles | Given EX-Vault access code 2023 | -10/Exiles | Opened EX-Vault 2082 | -10/Exiles | Exiles lab attacked by MAIN.C 2086 | -10/Exiles | Found 0b10 Alert Chip 2212 | -10/Exiles | Discovered new exit (range 10) 2225 | -10/Exiles | Left Exiles lab with 0b10 Alert Chip 2225 | -10/Exiles | Entered Mines 2471 | -9/Mines | Assembled infested the area 2476 | -9/Mines | Assisted by a Guerilla fighting off Assembled 2524 | -9/Mines | Core integrity fell below 20% 2526 | -9/Mines | Discovered new exit (range 16) 2527 | -9/Mines | Destroyed by D-53 Grenadier with Mini Grenade Launcher Last Messages --------------- way!" 02487_ HV Slug penetrates Wall. 02488_ T-07 Excavator is excavating. 02491_ DK-RAY destroyed. 02492_ T-07 Excavator is excavating. 02493_ K-01 Serf collects debris. 02493_ K-01 Serf destroyed. 02494_ as-26344 destroyed. 02495_ Particle Gun destroyed. 02499_ as-19296 destroyed. 02500_ K-01 Serf collects debris. 02517_ Ion Engine destroyed. 02521_ The unstable cave ceiling collapses. 02521_ K-01 Serf collects debris. 02521_ Acquired 15 matter. 02523_ Hvy. Assault Rifle destroyed. 02524_ K-01 Serf collects debris. 02525_ The unstable cave ceiling collapses. 02526_ EXIT=FOUND 02527_ The unstable cave ceiling collapses. Map ----- +----------------------------------------------------+ | %= ###???## ##??????????????????????????????? | | #### ###???### ###?????????????????????????????? | | ############### ####????????????????????????????? | | ??############ ####???????????????????????????? | | ????????### ####??????????????????????????? | | ??######## ###??????????????????????????? | | ########## #######?????????????????????? | | #### #### ########????????????????????? | | ## #### ## ###????????????????????? | | ##### ## ##????????????????????? | | ####### #### ##????????????????????? | | ##??######### ##????????????????????? | | ##???#####?## ###????????????????????? | | ###????????### ###????????????????????? | | ########??### ###?????????????????????? | | ############# ####?????????????????????? | | # ##### ###??????????????????????? | | #### ###?????????????????????? | | # ###?????????????????????? | | % ##?????????????????????? | | k #####?????????????????????? | | d ;"###?????????????????????? | | ### d ###############??????????? | | ### # #############??????????? | | ?### % # k